bitfinex/quotes_SOLUSD_20240621
["timestamp","ask_amount","ask_price","bid_price","bid_amount"]
[1718979707192,6.0584,132.35,132.23,20.0]
[1718979707388,6.0458,132.33,132.27,6.048]
[1718979707622,6.0584,132.35,132.27,6.048]
[1718979707623,6.0459,132.32,132.27,6.048]
[1718979707829,16.0463,132.33,132.22,15.1104]
[1718979708012,6.0472,132.3,132.24,6.0493]
[1718979708219,6.0477,132.28,132.23,6.0499]
[1718979708526,0.34,132.32,132.21,15.1272]
[1718979708527,6.0473,132.29,132.24,6.0494]
[1718979708901,16.0463,132.33,132.3,6.0468]
[1718979709104,16.0463,132.33,132.22,30.2513]
[1718979709411,16.0463,132.33,132.25,15.1219]
[1718979709710,15.5068,132.38,132.35,6.0444]
[1718979709900,15.5068,132.38,132.29,100.0]
[1718979710104,15.5068,132.38,132.28,30.2372]
[1718979710312,6.0439,132.37,132.32,6.0459]
[1718979710525,6.0446,132.35,132.3,6.0466]
[1718979711032,6.0451,132.34,132.29,6.0469]
[1718979711360,6.0451,132.34,132.29,6.0472]
[1718979711532,15.5068,132.38,132.27,15.1194]
[1718979711533,6.0442,132.36,132.27,15.1194]
[1718979711693,6.0437,132.37,132.25,100.0]
[1718979711896,15.5068,132.38,132.27,122.77]
[1718979712122,15.5068,132.38,132.35,6.0441]
[1718979712326,6.0807,132.39,132.35,6.0444]
[1718979712627,6.0807,132.39,132.28,22.94]
[1718979712813,6.0807,132.39,132.31,15.1158]
[1718979712992,6.0807,132.39,132.29,120.17]
[1718979713197,6.0807,132.39,132.33,15.1136]
[1718979713420,21.9142,132.43,132.32,122.77]
[1718979713613,21.9142,132.43,132.33,42.94]
[1718979713925,21.9142,132.43,132.34,100.0]
[1718979714130,21.9142,132.43,132.4,6.0421]
[1718979714311,21.9142,132.43,132.4,6.042]
[1718979714503,21.9142,132.43,132.37,15.1082]
[1718979715206,27.9551,132.43,132.38,6.043]
[1718979715604,27.9552,132.43,132.33,20.0]
[1718979715819,21.9142,132.43,132.4,6.0422]
[1718979716027,21.9142,132.43,132.39,6.0424]
[1718979716329,21.9142,132.43,132.38,6.043]
[1718979716905,21.9142,132.43,132.39,6.0427]
[1718979717105,21.9142,132.43,132.35,15.1114]
[1718979717620,6.0415,132.42,132.37,6.0433]
[1718979718014,21.9142,132.43,132.36,6.0439]
[1718979718015,6.0418,132.41,132.36,6.0439]
[1718979718533,6.0418,132.41,132.36,6.0441]
[1718979718534,6.042,132.41,132.36,6.0441]
[1718979719016,6.0432,132.38,132.33,6.0451]
[1718979719332,21.9142,132.43,132.32,6.0457]
[1718979719333,6.044,132.37,132.32,6.0457]
[1718979719508,6.0442,132.36,132.31,6.0461]
[1718979719825,0.17,132.42,132.27,30.2398]
[1718979720038,15.4437,132.42,132.27,30.2398]
[1718979720204,6.042,132.41,132.36,6.044]
[1718979720404,0.17,132.42,132.32,15.1146]
[1718979720737,21.9142,132.43,132.36,15.1102]
[1718979721029,21.9142,132.43,132.27,163.8498]
[1718979721030,27.9554,132.43,132.38,6.0429]
[1718979721221,21.9142,132.43,132.32,122.77]
[1718979721424,21.9142,132.43,132.4,6.0419]
[1718979721731,21.9142,132.43,132.39,6.0425]
[1718979722231,21.9142,132.43,132.34,37.0265]
[1718979722435,6.0425,132.4,132.35,6.0444]
[1718979722629,6.0426,132.4,132.35,6.0445]
[1718979722826,37.0175,132.43,132.37,6.0436]
[1718979722827,6.0415,132.42,132.37,6.0436]
[1718979723034,21.9142,132.43,132.36,6.0438]
[1718979723035,6.0418,132.41,132.36,6.0438]
[1718979723239,21.9142,132.43,132.4,6.0422]
[1718979723616,6.6362,132.47,132.37,122.77]
[1718979723910,6.6362,132.47,132.46,6.0395]
[1718979724235,6.0375,132.51,132.46,6.0394]
[1718979724236,12.5846,132.51,132.46,6.0394]
[1718979724538,12.5847,132.51,132.46,6.0393]
[1718979724837,6.0389,132.48,132.43,6.0406]
[1718979725043,6.0388,132.48,132.43,6.0406]
[1718979725250,6.5474,132.51,132.41,15.1045]
[1718979725408,6.1562,132.55,132.41,122.77]
[1718979725608,12.1918,132.55,132.46,15.0988]
[1718979725817,6.1562,132.55,132.51,6.0369]
[1718979726339,6.1562,132.55,132.49,15.0944]
[1718979726545,6.1562,132.55,132.51,6.0371]
[1718979726917,6.1562,132.55,132.44,15.1001]
[1718979727219,6.1562,132.55,132.48,6.0382]
[1718979727220,6.036,132.54,132.48,6.0382]
[1718979727426,12.192,132.55,132.49,6.038]
[1718979727612,6.1562,132.55,132.49,6.038]
[1718979727815,6.1562,132.55,132.42,52.4338]
[1718979728040,6.467,132.46,132.42,6.0411]
[1718979728336,6.467,132.46,132.39,33.61]
[1718979728337,12.5065,132.46,132.41,6.0414]
[1718979728637,6.467,132.46,132.39,15.1057]
[1718979728821,6.6593,132.5,132.43,15.1013]
[1718979729140,6.0382,132.49,132.43,6.0404]
[1718979729436,6.6593,132.5,132.4,15.1052]
[1718979729652,6.039,132.48,132.42,6.0412]
[1718979729837,6.6593,132.5,132.34,54.9302]
[1718979730024,6.0413,132.43,132.37,6.0435]
[1718979730234,30.1925,132.49,132.33,100.0]
[1718979730235,6.0414,132.42,132.34,20.0]
[1718979730537,30.1925,132.49,132.3,186.8591]
[1718979730538,15.1399,132.43,132.3,30.2327]
[1718979730721,6.0427,132.39,132.34,6.0449]
[1718979730927,30.2425,132.43,132.29,21.9142]
[1718979730928,6.0437,132.37,132.29,21.9142]
[1718979731127,15.1056,132.41,132.27,100.0]
[1718979731337,6.0433,132.38,132.32,6.0458]
[1718979731553,15.1399,132.43,132.29,100.0]
[1718979731731,15.1399,132.43,132.34,6.0447]
[1718979731732,0.34,132.42,132.34,6.0447]
[1718979731935,0.34,132.42,132.28,45.3774]
[1718979731936,45.34,132.42,132.31,6.0461]
[1718979732131,45.34,132.42,132.25,100.0]
[1718979732132,15.106,132.4,132.25,100.0]
[1718979732450,21.7679,132.41,132.25,100.0]
[1718979732758,6.0439,132.37,132.31,6.0463]
[1718979732938,0.17,132.4,132.32,6.0457]
[1718979733251,15.1071,132.39,132.26,15.1207]
[1718979733458,45.34,132.4,132.27,6.0479]
[1718979733459,6.0456,132.33,132.27,6.0479]
[1718979733632,6.0446,132.35,132.25,6.6631]
[1718979733953,22.4034,132.38,132.29,6.0472]
[1718979733954,15.1092,132.37,132.29,6.0472]
[1718979734123,6.0463,132.32,132.25,6.6631]
[1718979734328,6.0446,132.35,132.3,6.0468]
[1718979734525,6.0451,132.34,132.28,6.0476]
[1718979734758,15.2803,132.36,132.25,15.1224]
[1718979735066,15.2805,132.36,132.25,15.1224]
[1718979735264,15.2825,132.35,132.23,15.125]
[1718979735561,6.0461,132.32,132.26,6.0482]
[1718979735736,6.0456,132.33,132.27,6.0481]
[1718979736061,15.1103,132.36,132.24,15.1238]
[1718979736234,0.17,132.35,132.24,15.1238]
[1718979736435,6.0459,132.33,132.27,6.0481]
[1718979736737,15.1103,132.36,132.24,15.1238]
[1718979736738,6.0453,132.34,132.28,6.0473]
[1718979736946,15.1132,132.34,132.22,15.1116]
[1718979737169,0.17,132.33,132.22,15.1116]
[1718979737334,6.0472,132.3,132.24,6.0495]
[1718979737538,6.0472,132.3,132.25,6.0488]
[1718979737748,0.17,132.33,132.2,100.0]
[1718979738067,6.0439,132.37,132.31,6.0459]
[1718979738269,6.0445,132.35,132.3,6.0467]
[1718979738654,6.0452,132.34,132.28,6.0476]
[1718979738870,6.0455,132.33,132.28,6.0476]
[1718979739071,15.1113,132.36,132.25,15.1227]
[1718979739368,15.2801,132.37,132.25,15.1227]
[1718979739579,22.2334,132.38,132.23,100.0]
[1718979739738,0.17,132.37,132.27,6.048]
[1718979739940,6.0463,132.32,132.27,6.048]
[1718979740164,45.34,132.37,132.23,15.1242]
[1718979740165,15.1126,132.34,132.23,15.1242]
[1718979740466,6.0466,132.31,132.26,6.0484]
[1718979740667,15.1126,132.34,132.23,15.1242]
[1718979740873,6.0473,132.29,132.24,6.0494]
[1718979741065,6.0462,132.32,132.23,15.125]
[1718979741265,6.0465,132.31,132.23,15.125]
[1718979741465,6.0473,132.3,132.23,15.125]
[1718979741652,6.0473,132.3,132.25,6.0491]
[1718979741853,15.1142,132.33,132.24,6.0494]
[1718979741854,6.0473,132.29,132.24,6.0494]
[1718979742360,6.0475,132.29,132.24,6.0495]
[1718979742689,30.2258,132.34,132.23,6.0498]
[1718979742690,6.0482,132.28,132.23,6.0498]
[1718979742978,15.1168,132.31,132.22,6.0502]
[1718979742979,6.0483,132.27,132.22,6.0502]
[1718979743148,6.049,132.26,132.19,15.1296]
[1718979743344,6.049,132.26,132.17,6.5739]
[1718979743345,6.0502,132.23,132.17,6.0523]
[1718979743646,6.2814,132.28,132.16,6.0531]
[1718979743647,6.0511,132.21,132.16,6.0531]
[1718979744072,6.6214,132.28,132.14,130.2697]
[1718979744247,6.4514,132.28,132.16,15.1328]
[1718979744645,6.05,132.23,132.18,6.0519]
[1718979744840,15.2915,132.27,132.16,15.1328]
[1718979744841,15.1215,132.27,132.16,15.1328]
[1718979745061,6.0504,132.23,132.18,6.0523]
[1718979745457,6.0504,132.23,132.18,6.0522]
[1718979745658,6.0497,132.24,132.19,6.0515]
[1718979745862,6.0493,132.25,132.2,6.0514]
[1718979746066,6.0497,132.24,132.19,6.0517]
[1718979746453,21.4009,132.28,132.17,15.1319]
[1718979746678,6.0493,132.25,132.2,6.0513]
[1718979746857,6.2814,132.28,132.18,15.1299]
[1718979747060,6.2814,132.28,132.2,6.0512]
[1718979747061,6.0491,132.25,132.2,6.0512]
[1718979747261,6.0501,132.23,132.16,15.1328]
[1718979747459,6.0505,132.22,132.17,6.0525]
[1718979747665,15.1228,132.26,132.15,15.1334]
[1718979747851,6.051,132.21,132.16,6.053]
[1718979748065,15.294,132.25,132.12,100.0]
[1718979748266,36.521,132.28,132.19,6.0518]
[1718979748267,6.0498,132.24,132.19,6.0518]
[1718979749450,6.05,132.23,132.18,6.0521]
[1718979749766,6.051,132.21,132.16,6.053]
[1718979750149,6.0515,132.2,132.15,6.0535]
[1718979750478,6.0512,132.21,132.16,6.0532]
[1718979750678,6.0508,132.22,132.17,6.0526]
[1718979750859,6.2814,132.28,132.16,100.0]
[1718979751169,6.2814,132.28,132.24,6.0492]
[1718979751379,12.3293,132.28,132.23,6.0499]
[1718979751573,12.3292,132.28,132.23,6.05]
[1718979751749,6.2814,132.28,132.19,15.1294]
[1718979751949,6.0493,132.25,132.2,6.0513]
[1718979752167,6.0488,132.26,132.21,6.0509]
[1718979752379,12.3294,132.28,132.23,6.0499]
[1718979752578,6.0475,132.29,132.24,6.0495]
[1718979752789,6.0477,132.29,132.21,15.1273]
[1718979752962,6.0467,132.31,132.26,6.0484]
[1718979753159,6.0469,132.3,132.25,6.0488]
[1718979753468,6.0459,132.32,132.27,6.0479]
[1718979753854,6.0452,132.34,132.29,6.0472]
[1718979754062,22.0337,132.37,132.24,100.0]
[1718979754264,22.0337,132.37,132.26,15.1215]
[1718979754471,22.0337,132.37,132.27,6.0479]
[1718979754657,22.0337,132.37,132.19,50.1783]
[1718979754658,6.0442,132.36,132.25,100.0]
[1718979754863,6.1969,132.37,132.29,15.118]
[1718979755496,12.2406,132.37,132.31,6.0459]
[1718979755675,6.1969,132.37,132.32,6.0456]
[1718979755880,6.1969,132.37,132.29,15.118]
[1718979755881,6.0424,132.4,132.31,15.1158]
[1718979756178,6.0424,132.4,132.35,6.0444]
[1718979756593,6.1296,132.41,132.31,122.77]
[1718979756891,6.3597,132.46,132.33,122.77]
[1718979757093,6.0402,132.45,132.4,6.0419]
[1718979757262,6.0404,132.44,132.39,6.0426]
[1718979757590,6.0404,132.44,132.36,15.1093]
[1718979757591,6.0411,132.43,132.38,6.043]
[1718979757761,6.0405,132.44,132.38,6.043]
[1718979757956,6.0421,132.41,132.36,6.0438]
[1718979758157,15.1024,132.43,132.29,149.0944]
[1718979758467,15.1024,132.43,132.31,35.1149]
[1718979758667,6.0428,132.39,132.34,6.0447]
[1718979758973,0.17,132.42,132.32,15.1138]
[1718979759181,15.1,132.45,132.32,15.1138]
[1718979759360,6.0411,132.43,132.38,6.0428]
[1718979759667,6.041,132.43,132.37,6.0435]
[1718979759989,6.3597,132.46,132.35,100.0]
[1718979760183,12.3995,132.46,132.35,120.0]
[1718979760506,12.3995,132.46,132.4,6.042]
[1718979760660,12.3995,132.46,132.35,20.0]
[1718979760661,6.3597,132.46,132.35,20.0]
[1718979760988,6.3597,132.46,132.41,6.0415]
[1718979761194,6.3597,132.46,132.41,15.1045]
[1718979761493,0.8580225,132.56,132.47,6.0389]
[1718979761494,6.037,132.52,132.47,6.0389]
[1718979761662,6.3292,132.54,132.44,15.1011]
[1718979761861,6.3292,132.54,132.44,6.0403]
[1718979761862,6.0382,132.49,132.44,6.0403]
[1718979762058,6.0387,132.48,132.43,6.0407]
[1718979762262,6.3292,132.54,132.42,6.0411]
[1718979762491,6.0392,132.47,132.42,6.0412]
[1718979762684,6.0395,132.46,132.41,6.0416]
[1718979762988,6.0389,132.48,132.43,6.0407]
[1718979763465,15.0952,132.5,132.41,6.0415]
[1718979763466,6.0398,132.46,132.41,6.0415]
[1718979763671,6.0393,132.47,132.41,6.0415]
[1718979763984,12.5931,132.45,132.4,6.0421]
[1718979764285,6.5531,132.45,132.41,6.0418]
[1718979764876,6.5531,132.45,132.42,6.0413]
[1718979765270,6.5531,132.45,132.43,6.0408]
[1718979765477,16.428,132.47,132.4,15.1047]
[1718979765680,6.0318,132.49,132.41,15.1035]
[1718979765892,6.0318,132.49,132.4,100.0]
[1718979766192,6.0318,132.49,132.45,6.04]
[1718979766493,6.0387,132.48,132.43,6.0408]
[1718979766674,12.0701,132.49,132.44,6.0404]
[1718979766882,12.0701,132.49,132.4,15.1056]
[1718979767075,15.0943,132.51,132.4,21.3328]
[1718979767276,6.0364,132.53,132.48,6.0383]
[1718979767588,15.0887,132.55,132.46,6.0392]
[1718979767910,6.0374,132.51,132.46,6.0392]
[1718979768266,0.8580225,132.56,132.43,100.0]
[1718979768579,6.0371,132.52,132.47,6.039]
[1718979768783,6.0371,132.52,132.43,15.1022]
[1718979768987,6.0365,132.53,132.47,6.0387]
[1718979769183,15.0898,132.54,132.46,6.0395]
[1718979769387,15.0898,132.54,132.43,15.1022]
[1718979769571,15.0898,132.54,132.46,6.0391]
[1718979769572,6.0369,132.52,132.46,6.0391]
[1718979769774,6.0376,132.51,132.43,15.1022]
[1718979769984,22.875,132.55,132.48,6.0383]
[1718979770296,0.17,132.54,132.48,6.0384]
[1718979770493,6.0366,132.53,132.47,6.0389]
[1718979770697,6.0366,132.53,132.48,6.0385]
[1718979771074,6.0369,132.52,132.47,6.0389]
[1718979771291,0.17,132.54,132.43,15.1022]
[1718979772004,0.34,132.54,132.43,15.1022]
[1718979772297,45.34,132.54,132.42,22.875]
[1718979772489,6.0382,132.49,132.44,6.0401]
[1718979772791,45.34,132.54,132.44,6.0401]
[1718979772792,6.0378,132.5,132.44,6.0401]
[1718979772991,6.0379,132.5,132.44,6.0401]
[1718979773368,45.34,132.54,132.4,22.875]
[1718979773369,6.0388,132.48,132.4,22.875]
[1718979773578,6.0388,132.48,132.43,6.0409]
[1718979773762,6.0388,132.48,132.42,6.0411]
[1718979773965,6.0402,132.45,132.4,6.0421]
[1718979774576,6.0405,132.44,132.39,6.0426]
[1718979774898,15.5545,132.47,132.4,6.042]
[1718979774899,6.0401,132.45,132.4,6.042]
[1718979775086,6.0404,132.44,132.39,6.0426]
[1718979775301,6.0402,132.45,132.4,6.042]
[1718979775615,6.0405,132.44,132.39,6.0426]
[1718979775999,0.17,132.46,132.32,6.2622]
[1718979776203,0.34,132.46,132.36,15.1098]
[1718979776508,6.0404,132.45,132.4,6.0422]
[1718979776892,15.5545,132.47,132.4,15.1052]
[1718979777107,15.5545,132.47,132.43,6.0407]
[1718979777406,21.5937,132.47,132.42,6.0411]
[1718979777609,15.5545,132.47,132.4,15.1052]
[1718979777814,15.5545,132.47,132.42,6.0409]
[1718979778003,15.5545,132.47,132.37,30.2172]
[1718979778004,6.0396,132.46,132.41,6.0415]
[1718979778199,15.5545,132.47,132.39,15.1059]
[1718979778402,6.04,132.45,132.37,30.2172]
[1718979778599,6.0407,132.44,132.39,6.0425]
[1718979778794,6.0414,132.42,132.37,6.0434]
[1718979779002,6.0414,132.42,132.34,30.6661]
[1718979779003,15.5545,132.47,132.34,15.1116]
[1718979779213,15.5545,132.47,132.32,15.1148]
[1718979779214,6.5087,132.45,132.32,15.1148]
[1718979779401,0.34,132.44,132.34,15.1116]
[1718979779599,6.5087,132.45,132.32,15.5545]
[1718979779894,6.0405,132.44,132.39,6.0426]
[1718979780203,6.5087,132.45,132.38,6.043]
[1718979780419,6.5087,132.45,132.37,6.0434]
[1718979780728,12.5487,132.45,132.4,6.0419]
[1718979781224,6.0409,132.43,132.38,6.0429]
[1718979781595,6.0409,132.43,132.36,15.1102]
[1718979781596,6.0406,132.44,132.39,6.0427]
[1718979781796,6.5087,132.45,132.34,30.2241]
[1718979781797,6.5087,132.45,132.35,100.0]
[1718979781997,6.5087,132.45,132.39,6.0424]
[1718979781998,6.0405,132.44,132.39,6.0424]
[1718979782300,6.5087,132.45,132.34,30.2241]
[1718979782522,12.5488,132.45,132.4,6.0421]
[1718979782831,12.5488,132.45,132.37,15.109]
[1718979782832,6.5087,132.45,132.37,30.2173]
[1718979782997,15.5545,132.47,132.44,6.0404]
[1718979783193,15.5545,132.47,132.43,6.0407]
[1718979783397,15.5545,132.47,132.39,15.1065]
[1718979783610,15.5545,132.47,132.43,6.0408]
[1718979783813,15.5545,132.47,132.39,15.1065]
[1718979784008,21.5938,132.47,132.42,6.0411]
[1718979784212,15.5545,132.47,132.37,15.109]
[1718979784404,15.5545,132.47,132.39,6.0425]
[1718979784405,6.0407,132.44,132.39,6.0425]
[1718979784603,15.5545,132.47,132.38,15.107]
[1718979784820,6.588,132.49,132.43,15.1022]
[1718979785132,15.1312,132.51,132.48,6.0382]
[1718979785302,6.1426,132.53,132.49,6.0381]
[1718979785797,6.1426,132.53,132.48,15.0965]
[1718979786003,6.1426,132.53,132.5,6.0373]
[1718979786300,6.1426,132.53,132.49,6.0379]
[1718979786503,6.1426,132.53,132.45,100.0]
[1718979786817,15.9892225,132.56,132.47,15.0967]
[1718979787018,15.9892225,132.56,132.45,15.0998]
[1718979787206,15.9892225,132.56,132.46,15.098]
[1718979787402,6.0373,132.51,132.42,22.77]
[1718979787613,6.0373,132.51,132.41,133.61]
[1718979787614,6.037,132.52,132.47,6.0387]
[1718979787928,15.9892225,132.56,132.46,6.0395]
[1718979788231,6.0366,132.53,132.48,6.0385]
[1718979788430,15.9892225,132.56,132.4,130.2107]
[1718979788640,6.038,132.5,132.45,6.0398]
[1718979788922,6.038,132.5,132.44,6.0401]
[1718979789131,61.2537225,132.56,132.44,15.101]
[1718979789321,31.0778225,132.56,132.44,15.101]
[1718979789637,6.0365,132.53,132.47,6.0388]
[1718979789815,0.17,132.55,132.47,6.0388]
[1718979790129,0.17,132.55,132.42,100.0]
[1718979790130,46.1658225,132.56,132.42,15.1034]
[1718979790330,46.1658225,132.56,132.36,16.6578]
[1718979790331,6.3684,132.54,132.37,106.6347]
[1718979790544,6.0405,132.44,132.39,6.0426]
[1718979790826,6.3684,132.46,132.36,116.6578]
[1718979791033,6.3684,132.46,132.37,15.109]
[1718979791242,6.3684,132.46,132.42,6.0413]
[1718979791409,6.3684,132.46,132.38,15.1069]
[1718979791608,6.0401,132.45,132.4,6.0422]
[1718979791833,16.6302,132.45,132.37,6.0434]
[1718979792137,16.6302,132.45,132.35,100.0]
[1718979792313,16.6302,132.45,132.35,122.77]
[1718979792508,16.6302,132.45,132.35,100.0]
[1718979792711,6.0407,132.44,132.37,15.1091]
[1718979792909,6.0407,132.44,132.39,6.0427]
[1718979793107,16.6302,132.45,132.37,15.1091]
[1718979793332,6.0407,132.44,132.39,6.0425]
[1718979793517,16.6302,132.45,132.42,6.0413]
[1718979793726,16.6302,132.45,132.38,15.1069]
[1718979793954,16.6302,132.45,132.41,6.0415]
[1718979794143,16.6302,132.45,132.42,6.0413]
[1718979794442,16.6302,132.45,132.38,15.1069]
[1718979794739,6.3684,132.46,132.4,15.1055]
[1718979794908,6.3684,132.46,132.42,6.0412]
[1718979795541,6.3684,132.46,132.43,6.0408]
[1718979795839,16.2007,132.49,132.41,15.1037]
[1718979796139,6.0387,132.48,132.43,6.0408]
[1718979797353,6.0399,132.46,132.4,6.0419]
[1718979797638,6.0393,132.47,132.42,6.0413]
[1718979798030,31.297,132.49,132.43,6.0408]
[1718979798031,6.0388,132.48,132.43,6.0408]
[1718979798220,16.2007,132.49,132.44,6.0404]
[1718979798221,22.2392,132.49,132.44,6.0404]
[1718979798540,6.0386,132.48,132.43,6.0407]
[1718979798847,6.0392,132.47,132.42,6.0413]
[1718979799018,6.0387,132.48,132.43,6.0406]
[1718979799640,6.1157,132.5,132.42,0.17]
[1718979799944,21.283,132.53,132.48,6.0385]
[1718979800146,15.2464,132.53,132.49,6.0378]
[1718979800319,15.2464,132.53,132.49,6.0379]
[1718979800714,6.6322,132.54,132.51,6.0372]
[1718979800910,0.8580225,132.56,132.47,122.77]
[1718979801143,0.8580225,132.56,132.52,6.0364]
[1718979801316,0.8580225,132.56,132.49,15.0954]
[1718979801515,6.0354,132.55,132.5,6.0374]
[1718979801734,0.8580225,132.56,132.5,15.0941]
[1718979802136,0.8580225,132.56,132.51,15.0921]
[1718979802332,0.8580225,132.56,132.55,6.0354]
[1718979803652,0.8580225,132.56,132.51,15.0931]
[1718979803953,0.8580225,132.56,132.55,6.0354]
[1718979805368,0.8580225,132.56,132.5,15.094]
[1718979805651,0.8580225,132.56,132.55,6.0354]
[1718979806027,0.8580225,132.56,132.45,100.0]
[1718979806362,6.0362,132.54,132.49,6.0379]
[1718979806555,15.9455225,132.56,132.43,175.5832]
[1718979806760,0.8580225,132.56,132.49,15.0954]
[1718979806931,0.8580225,132.56,132.52,6.0364]
[1718979807129,0.8580225,132.56,132.52,6.0366]
[1718979807328,0.8580225,132.56,132.51,15.093]
[1718979807554,0.8580225,132.56,132.53,6.036]
[1718979807849,0.8580225,132.56,132.51,15.093]
[1718979808063,0.8580225,132.56,132.53,6.0361]
[1718979808229,0.8580225,132.56,132.54,6.0358]
[1718979808430,0.8580225,132.56,132.53,6.0361]
[1718979808759,0.8580225,132.56,132.46,30.1967]
[1718979808760,0.8580225,132.56,132.52,15.0911]
[1718979809452,0.8580225,132.56,132.53,6.036]
[1718979809761,0.8580225,132.56,132.5,15.0943]
[1718979810051,0.8580225,132.56,132.47,15.097]
[1718979810242,6.0366,132.53,132.48,6.0384]
[1718979810559,6.0368,132.52,132.47,6.0389]
[1718979810731,15.2126,132.54,132.49,6.0379]
[1718979810732,21.2487,132.54,132.49,6.0379]
[1718979810938,6.0364,132.53,132.48,6.0385]
[1718979811131,15.2126,132.54,132.43,15.1021]
[1718979811337,6.038,132.5,132.45,6.0397]
[1718979811947,6.0384,132.49,132.44,6.0402]
[1718979812147,15.2126,132.54,132.43,15.1014]
[1718979812347,6.0368,132.52,132.41,130.2085]
[1718979812549,15.2126,132.54,132.41,130.2085]
[1718979812766,6.0372,132.52,132.47,6.039]
[1718979813070,6.0369,132.52,132.47,6.039]
[1718979813235,6.0369,132.52,132.47,6.0386]
[1718979813437,15.2126,132.54,132.45,15.0999]
[1718979813671,15.092,132.52,132.39,100.0]
[1718979813846,15.092,132.52,132.4,20.17]
[1718979814045,6.037,132.52,132.41,130.2084]
[1718979814262,6.0364,132.53,132.48,6.0386]
[1718979814565,30.3026,132.54,132.42,15.1034]
[1718979814770,30.3026,132.54,132.44,15.101]
[1718979814936,6.0373,132.51,132.46,6.0395]
[1718979815142,15.2126,132.54,132.45,15.0991]
[1718979815346,21.2486,132.54,132.49,6.038]
[1718979815646,15.2126,132.54,132.48,6.0384]
[1718979815846,6.0366,132.53,132.48,6.0384]
[1718979816067,6.0368,132.52,132.48,6.0384]
[1718979816365,6.0372,132.51,132.44,15.1008]
[1718979816554,6.0369,132.52,132.47,6.0389]
[1718979816942,15.2126,132.54,132.45,30.1999]
[1718979817148,15.2126,132.54,132.5,6.0374]
[1718979817351,21.2485,132.54,132.49,6.038]
[1718979817667,6.0366,132.53,132.48,6.0384]
[1718979817967,6.0374,132.51,132.46,6.0394]
[1718979818148,6.037,132.52,132.47,6.039]
[1718979818469,6.037,132.52,132.47,6.0389]
[1718979818648,21.2489,132.54,132.48,6.0383]
[1718979818961,6.0373,132.51,132.46,6.0392]
[1718979819266,6.0373,132.51,132.44,15.101]
[1718979819267,15.2126,132.54,132.44,30.2017]
[1718979819481,6.372,132.55,132.45,100.0]
[1718979819647,6.372,132.55,132.51,6.0371]
[1718979819966,6.372,132.55,132.45,100.0]
[1718979820172,6.372,132.55,132.51,6.0371]
[1718979820362,6.372,132.55,132.49,15.0946]
[1718979820566,6.372,132.55,132.52,6.0363]
[1718979820878,6.372,132.55,132.53,6.0362]
[1718979821174,6.372,132.55,132.54,6.0359]
[1718979822181,0.8580225,132.56,132.55,6.0354]
[1718979822893,0.8580225,132.56,132.5,100.0]
[1718979823167,0.8580225,132.56,132.55,6.0354]
[1718979823853,0.8580225,132.56,132.51,15.0929]
[1718979824058,0.8580225,132.56,132.55,6.0354]
[1718979825973,0.8580225,132.56,132.52,15.0918]
[1718979826178,0.8580225,132.56,132.55,6.0354]
[1718979826776,0.8580225,132.56,132.53,6.0361]
[1718979827659,0.8580225,132.56,132.51,15.0928]
[1718979827867,0.8580225,132.56,132.54,6.0357]